bitfinex-derivatives/quotes_BTCF0:USTF0_20250828
["timestamp","ask_amount","ask_price","bid_price","bid_amount"]
[1756403507874,0.2858545,112630.0,112620.0,0.65836111]
[1756403508079,1.1025345,112630.0,112620.0,0.1814989]
[1756403508274,1.1025345,112630.0,112620.0,0.65836111]
[1756403511675,1.1913155,112630.0,112620.0,0.051]
[1756403511979,1.66817771,112630.0,112620.0,0.051]
[1756403512175,1.66817771,112630.0,112620.0,0.001]
[1756403512778,0.1051467,112610.0,112600.0,0.60533041]
[1756403512980,0.9218267,112610.0,112600.0,0.65533041]
[1756403515284,0.9228267,112610.0,112600.0,0.65533041]
[1756403517581,0.9228667,112610.0,112600.0,0.65533041]
[1756403517770,1.1728667,112610.0,112600.0,0.05]
[1756403517976,1.64972891,112610.0,112600.0,0.05]
[1756403518378,1.1728667,112610.0,112600.0,0.05]
[1756403520181,1.64972891,112610.0,112600.0,0.05]
[1756403520484,1.64976891,112610.0,112600.0,0.05]
[1756403520680,1.1729067,112610.0,112600.0,0.1539646]
[1756403520873,0.3561467,112610.0,112600.0,0.1539646]
[1756403521075,1.1729067,112610.0,112600.0,0.1539646]
[1756403521885,1.1729067,112610.0,112600.0,0.1039646]
[1756403522185,1.4367067,112610.0,112600.0,0.1039646]
[1756403522382,0.6199467,112610.0,112600.0,0.1039646]
[1756403522586,1.4367067,112610.0,112600.0,0.1039646]
[1756403525783,1.4367067,112610.0,112600.0,0.0888046]
[1756403525988,0.1042446,112600.0,112590.0,0.1287887]
[1756403526190,0.1042446,112600.0,112590.0,0.1787887]
[1756403527081,0.1042446,112600.0,112590.0,0.1797887]
[1756403527479,0.9210046,112600.0,112590.0,0.65665091]
[1756403529085,0.9210046,112600.0,112590.0,0.65565091]
[1756403529285,0.9220046,112600.0,112590.0,0.65565091]
[1756403530189,0.83324,112600.0,112590.0,0.65565091]
[1756403530390,0.8178,112600.0,112590.0,0.90565091]
[1756403530789,0.9220446,112600.0,112590.0,0.90565091]
[1756403530990,0.01644,112600.0,112590.0,0.90565091]
[1756403531388,0.8273,112600.0,112590.0,0.90565091]
[1756403532791,0.8178,112600.0,112590.0,0.90565091]
[1756403532986,0.8273,112600.0,112590.0,0.90565091]
[1756403533195,0.83324,112600.0,112590.0,0.90565091]
[1756403534292,0.0105,112600.0,112590.0,0.90565091]
[1756403534488,0.8273,112600.0,112590.0,0.90565091]
[1756403535492,0.83324,112600.0,112590.0,0.90565091]
[1756403538694,0.9220446,112600.0,112590.0,0.90565091]
[1756403539196,0.9220446,112600.0,112590.0,0.4287887]
[1756403539390,0.9220446,112600.0,112590.0,0.90565091]
[1756403539590,0.9220446,112600.0,112590.0,0.1542825]
[1756403539791,0.9220446,112600.0,112590.0,0.1388125]
[1756403540092,0.1042525,112590.0,112580.0,0.10965823]
[1756403540288,0.84491471,112590.0,112580.0,0.06547]
[1756403541295,0.84491471,112590.0,112580.0,0.06647]
[1756403541695,1.09491471,112590.0,112580.0,0.001]
[1756403542495,1.91167471,112590.0,112580.0,0.001]
[1756403543704,0.1042604,112580.0,112570.0,0.104294]
[1756403543997,1.1848604,112580.0,112570.0,0.154294]
[1756403544255,0.3680604,112580.0,112570.0,0.177784]
[1756403544422,1.1848604,112580.0,112570.0,0.177784]
[1756403544897,0.27924,112580.0,112570.0,0.65464621]
[1756403545201,1.09604,112580.0,112570.0,0.65464621]
[1756403545602,1.1848603,112580.0,112570.0,0.65464621]
[1756403546205,1.1858603,112580.0,112570.0,0.65464621]
[1756403547802,0.3690603,112580.0,112570.0,0.65464621]
[1756403548305,0.9586,112580.0,112570.0,0.65464621]
[1756403548507,0.9586,112580.0,112570.0,0.177784]
[1756403548702,0.9586,112580.0,112570.0,0.65464621]
[1756403549104,0.28024,112580.0,112570.0,0.65464621]
[1756403549403,1.1859004,112580.0,112570.0,0.177784]
[1756403549604,1.1859004,112580.0,112570.0,0.65464621]
[1756403554608,0.3690604,112580.0,112570.0,0.65464621]
[1756403554814,1.1859004,112580.0,112570.0,0.65464621]
[1756403560019,1.1859004,112580.0,112570.0,0.177784]
[1756403560219,1.1859004,112580.0,112570.0,0.65464621]
[1756403560814,1.1859004,112580.0,112570.0,0.60464621]
[1756403563715,1.1858604,112580.0,112570.0,0.60464621]
[1756403564611,0.3690604,112580.0,112570.0,0.60464621]
[1756403564813,1.1858604,112580.0,112570.0,0.60464621]
[1756403571323,1.1858604,112580.0,112570.0,0.60465031]
[1756403571623,1.72304715,112580.0,112570.0,0.66497485]
[1756403572418,1.72304715,112580.0,112570.0,0.01547]
[1756403572628,0.1042681,112570.0,112560.0,0.1043355]
[1756403572822,0.98814587,112570.0,112560.0,0.1043355]
[1756403573121,1.79602197,112570.0,112560.0,0.66426225]
[1756403573918,1.25883522,112570.0,112560.0,0.66426225]
[1756403574119,1.25883522,112570.0,112560.0,0.66526225]
[1756403575120,0.44211522,112570.0,112560.0,0.66526225]
[1756403575322,1.25883522,112570.0,112560.0,0.60563213]
[1756403575622,1.25983522,112570.0,112560.0,0.60563213]
[1756403575823,1.25983522,112570.0,112560.0,0.60463213]
[1756403576220,0.9219881,112570.0,112560.0,0.60463213]
[1756403576420,0.9219881,112570.0,112560.0,0.1270755]
[1756403576624,0.9219881,112570.0,112560.0,0.60463213]
[1756403578027,0.9220281,112570.0,112560.0,0.60463213]
[1756403579930,0.1052681,112570.0,112560.0,0.60463213]
[1756403580130,0.9219881,112570.0,112560.0,0.1270755]
[1756403580430,0.9219881,112570.0,112560.0,0.60463213]
[1756403582132,0.9219881,112570.0,112560.0,0.1270755]
[1756403583631,0.9219881,112570.0,112560.0,0.60463213]
[1756403585334,0.9219881,112570.0,112560.0,0.1270755]
[1756403590841,0.9219881,112570.0,112560.0,0.60463213]
[1756403591842,0.9219881,112570.0,112560.0,0.1270755]
[1756403592047,0.9219881,112570.0,112560.0,0.03824]
[1756403592443,0.9219881,112570.0,112560.0,0.1270761]
[1756403595244,0.1052681,112570.0,112560.0,0.1270761]
[1756403595445,1.45916035,112570.0,112560.0,0.66436835]
[1756403595841,0.1052681,112570.0,112560.0,0.66436835]
[1756403596045,0.9218682,112570.0,112560.0,0.66436835]
[1756403596446,1.45916045,112570.0,112560.0,0.66436835]
[1756403597147,0.64256045,112570.0,112560.0,0.66436835]
[1756403597442,1.45916045,112570.0,112560.0,0.66436835]
[1756403603745,1.45916045,112570.0,112550.0,0.1834266]
[1756403603952,0.64156835,112560.0,112550.0,0.016]
[1756403604147,0.66140976,112560.0,112550.0,0.104844]
[1756403604749,0.66140976,112560.0,112550.0,0.64213625]
[1756403604956,0.66140976,112560.0,112550.0,0.104844]
[1756403605152,0.0983598,112530.0,112520.0,0.19840779]
[1756403605448,2.01535793,112530.0,112520.0,0.016]
[1756403605652,0.1043077,112520.0,112510.0,0.016]
[1756403605853,0.64159995,112520.0,112510.0,0.016]
[1756403606046,0.64059995,112520.0,112510.0,0.016]
[1756403606753,0.63959995,112520.0,112510.0,0.016]
[1756403607351,0.1043155,112510.0,112500.0,0.19770002]
[1756403607558,0.9207955,112510.0,112500.0,0.24770002]
[1756403608045,0.9177955,112510.0,112500.0,0.24770002]
[1756403608244,0.93756304,112510.0,112500.0,0.24770002]
[1756403609054,0.93756304,112510.0,112500.0,0.24970002]
[1756403609255,0.93760304,112510.0,112500.0,0.24970002]
[1756403609662,0.93760304,112510.0,112500.0,0.25170002]
[1756403611862,0.93764304,112510.0,112500.0,0.25170002]
[1756403612655,0.12108304,112510.0,112500.0,0.25170002]
[1756403612960,0.93764304,112510.0,112500.0,0.25170002]
[1756403613355,1.41573477,112510.0,112500.0,0.25170002]
[1756403613556,1.41573477,112510.0,112500.0,0.07]
[1756403613754,1.41573477,112510.0,112500.0,0.004]
[1756403613755,1.66573477,112510.0,112500.0,0.004]
[1756403614360,1.66577477,112510.0,112500.0,0.004]
[1756403614567,0.84917477,112510.0,112500.0,0.004]
[1756403614773,1.66577477,112510.0,112500.0,0.004]
[1756403615170,1.66573477,112510.0,112500.0,0.004]
[1756403616273,0.0920023,112480.0,112470.0,0.03924]
[1756403616478,1.38867403,112480.0,112470.0,0.03924]
[1756403616774,0.0889072,112470.0,112460.0,0.02415]
[1756403616973,0.0939472,112470.0,112460.0,0.1781551]
[1756403617366,0.0939472,112470.0,112460.0,0.18713989]
[1756403617573,0.9055872,112470.0,112460.0,0.08924]
[1756403617876,0.9045872,112470.0,112460.0,0.08924]
[1756403618268,0.00504,112470.0,112460.0,0.25962707]
[1756403618577,0.41528,112470.0,112460.0,0.7407188]
[1756403618767,0.82168,112470.0,112460.0,0.7407188]
[1756403619466,0.9105871,112470.0,112460.0,0.7407188]
[1756403620168,0.9105871,112470.0,112460.0,0.6518037]
[1756403620476,0.9105871,112470.0,112460.0,0.6528037]
[1756403620868,0.9105871,112470.0,112460.0,0.26362697]
[1756403621675,0.0939471,112470.0,112460.0,0.7417187]
[1756403621868,0.9106671,112470.0,112460.0,0.7417187]
[1756403622176,0.9106671,112470.0,112460.0,0.26362697]
[1756403622376,0.9106671,112470.0,112460.0,0.7417187]
[1756403622576,0.0939471,112470.0,112460.0,0.7417187]
[1756403622871,0.9106671,112470.0,112460.0,0.7417187]
[1756403623582,0.9106671,112470.0,112460.0,0.26362697]
[1756403623772,0.9106671,112470.0,112460.0,0.7417187]
[1756403624568,0.9106671,112470.0,112460.0,0.26362697]
[1756403624872,0.9106671,112470.0,112460.0,0.21362697]
[1756403625074,0.9106671,112470.0,112460.0,0.6917187]
[1756403625575,0.9107071,112470.0,112460.0,0.6917187]
[1756403626573,0.9107071,112470.0,112460.0,0.6825922]
[1756403626774,0.9107071,112470.0,112460.0,0.20450047]
[1756403626980,0.9107071,112470.0,112460.0,0.6825922]
[1756403627179,0.9107071,112470.0,112460.0,0.61024673]
[1756403630688,0.9107071,112470.0,112460.0,0.132155]
[1756403631384,0.9107071,112470.0,112460.0,0.61024673]
[1756403631579,0.0939471,112470.0,112460.0,0.108005]
[1756403631878,0.9107071,112470.0,112460.0,0.132155]
[1756403632380,0.9107071,112470.0,112460.0,0.61024673]
[1756403632580,0.9107071,112470.0,112460.0,0.132155]
[1756403633677,0.9107071,112470.0,112460.0,0.61024673]
[1756403633879,0.9107071,112470.0,112460.0,0.108005]
[1756403634076,0.9107071,112470.0,112460.0,0.132155]
[1756403634269,1.66501336,112470.0,112460.0,0.004]
[1756403634469,0.1088703,112450.0,112440.0,0.03924]
[1756403634686,1.40740203,112450.0,112440.0,0.03924]
[1756403634877,0.9293103,112450.0,112440.0,0.03924]
[1756403635278,0.95554742,112450.0,112440.0,0.03924]
[1756403635773,0.95554742,112450.0,112440.0,0.04224]
[1756403636174,0.9293103,112450.0,112440.0,0.04224]
[1756403636376,0.95554633,112450.0,112440.0,0.04224]
[1756403636687,0.95554633,112450.0,112440.0,0.04324]
[1756403637683,1.02668905,112450.0,112440.0,0.04324]
[1756403640486,1.02668905,112450.0,112440.0,0.1321709]
[1756403642682,0.20624905,112450.0,112440.0,0.1321709]
[1756403642878,1.02640905,112450.0,112440.0,0.1321709]
[1756403643686,1.75454078,112450.0,112440.0,0.004]
[1756403643884,0.0889467,112420.0,112410.0,0.60501043]
[1756403644087,0.9090267,112420.0,112410.0,0.65501043]
[1756403644286,0.93530881,112420.0,112410.0,0.65501043]
[1756403644589,0.84696211,112420.0,112410.0,0.65501043]
[1756403644789,0.84692211,112420.0,112410.0,0.90501043]
[1756403644989,0.02628211,112420.0,112410.0,0.90501043]
[1756403645183,0.01948781,112430.0,112420.0,0.1118967]
[1756403645385,0.0457679,112430.0,112420.0,0.65500843]
[1756403645890,0.01948781,112430.0,112420.0,0.65500843]
[1756403646393,0.04560633,112430.0,112420.0,0.65500843]
[1756403647591,0.02048781,112430.0,112420.0,0.65500843]
[1756403648092,0.02248781,112430.0,112420.0,0.65500843]
[1756403651793,0.11142651,112430.0,112420.0,0.65500843]
[1756403651997,0.02248781,112430.0,112420.0,0.65500843]
[1756403652795,0.02248781,112430.0,112420.0,0.1769167]
[1756403652992,0.02248781,112430.0,112420.0,0.65500843]
[1756403656296,0.04860353,112430.0,112420.0,0.65500843]
[1756403659989,0.04860353,112430.0,112420.0,0.1769167]
[1756403660189,0.04860353,112430.0,112420.0,0.65500843]
[1756403660385,0.04860353,112430.0,112420.0,0.1769167]
[1756403660596,0.02248781,112430.0,112420.0,0.1769167]
[1756403660795,0.84324781,112430.0,112420.0,0.1769167]
[1756403660997,0.84324781,112430.0,112420.0,0.65500843]
[1756403661294,0.93218651,112430.0,112420.0,0.65500843]
[1756403661495,0.02248781,112430.0,112420.0,0.65500843]
[1756403661796,0.84360781,112430.0,112420.0,0.65500843]
[1756403663198,0.02248781,112430.0,112420.0,0.65500843]
[1756403663399,0.84352781,112430.0,112420.0,0.65500843]
[1756403664401,0.02248781,112430.0,112420.0,0.65500843]
[1756403664601,0.84328781,112430.0,112420.0,0.65500843]
[1756403667604,0.84296781,112430.0,112420.0,0.65500843]
[1756403668705,0.02248781,112430.0,112420.0,0.65500843]
[1756403668896,0.84312781,112430.0,112420.0,0.90500843]
[1756403669096,0.02248781,112430.0,112420.0,0.90500843]
[1756403669297,0.8793473,112450.0,112440.0,0.1039508]
[1756403669505,0.8793473,112450.0,112440.0,0.65499253]
[1756403669699,0.0585073,112450.0,112440.0,0.65499253]
[1756403669906,0.8793073,112450.0,112440.0,0.65499253]
[1756403670808,0.8813073,112450.0,112440.0,0.65499253]
[1756403671008,0.8833073,112450.0,112440.0,0.65499253]
[1756403672103,0.04256,112450.0,112440.0,0.1769008]
[1756403672308,0.84051,112450.0,112440.0,0.65499253]
[1756403673097,0.863,112450.0,112440.0,0.1769008]
[1756403673303,0.863,112450.0,112440.0,0.65499253]
[1756403675803,0.863,112450.0,112440.0,0.1769008]
[1756403676006,0.863,112450.0,112440.0,0.65499253]
[1756403680511,0.86388,112450.0,112440.0,0.65499253]
[1756403684209,0.86388,112450.0,112440.0,0.1769008]
[1756403684408,0.86388,112450.0,112440.0,0.65499253]
[1756403685823,0.86388,112450.0,112440.0,0.1769008]
[1756403686017,0.86388,112450.0,112440.0,0.65499253]
[1756403686215,0.86388,112450.0,112440.0,0.1389308]
[1756403686513,0.85957463,112450.0,112440.0,0.1542108]
[1756403686715,1.12156,112450.0,112440.0,0.1784208]
[1756403687220,0.29256,112450.0,112440.0,0.1784208]
[1756403687415,1.12156,112450.0,112440.0,0.1784208]
[1756403687614,1.2104829,112450.0,112440.0,0.1784208]
[1756403689715,0.3814829,112450.0,112440.0,0.1784208]
[1756403689916,0.29256,112450.0,112440.0,0.1784208]
[1756403690117,1.12124,112450.0,112440.0,0.1784208]
[1756403690313,1.12116,112450.0,112440.0,0.65651253]
[1756403690618,0.87116,112450.0,112440.0,0.65651253]
[1756403691218,0.04256,112450.0,112440.0,0.65651253]
[1756403691414,0.84855,112450.0,112440.0,0.65651253]
[1756403691820,0.87104,112450.0,112440.0,0.65651253]
[1756403692520,0.04256,112450.0,112440.0,0.65651253]
[1756403692722,0.87064,112450.0,112440.0,0.65651253]
[1756403693021,0.04256,112450.0,112440.0,0.65651253]
[1756403693329,0.87048,112450.0,112440.0,0.65651253]
[1756403694018,0.87028,112450.0,112440.0,0.65651253]
[1756403694220,0.004,112450.0,112440.0,1.38460426]
[1756403695613,0.004,112450.0,112440.0,0.90651253]
[1756403695817,0.04222,112450.0,112440.0,0.90651253]
[1756403696118,0.04222,112450.0,112440.0,0.65651253]
[1756403696619,0.87014,112450.0,112440.0,0.65651253]
[1756403698013,0.04222,112450.0,112440.0,0.65651253]
[1756403699427,0.01973,112450.0,112440.0,0.65651253]
[1756403700229,0.01973,112450.0,112440.0,1.13460426]
[1756403700529,0.004,112450.0,112440.0,1.38460426]
[1756403702422,0.01974,112450.0,112440.0,0.90651253]
[1756403702623,0.04223,112450.0,112440.0,0.90651253]
[1756403704034,0.04223,112450.0,112440.0,0.65651253]
[1756403706035,0.004,112450.0,112440.0,0.65651253]
[1756403706933,0.01974,112450.0,112440.0,0.65651253]
[1756403707237,0.004,112450.0,112440.0,0.65651253]
[1756403708334,0.01974,112450.0,112440.0,0.65651253]
[1756403708739,0.004,112450.0,112440.0,0.65651253]
[1756403709240,0.01974,112450.0,112440.0,0.65651253]
[1756403710040,0.004,112450.0,112440.0,0.65651253]
[1756403713132,0.004,112450.0,112440.0,1.13460426]
[1756403714043,0.004,112450.0,112440.0,1.96144426]
[1756403714744,0.002,112450.0,112440.0,1.96144426]
[1756403715042,0.003,112450.0,112440.0,1.96144426]
[1756403715442,0.001,112450.0,112440.0,1.96144426]
[1756403715642,0.002,112450.0,112440.0,1.96144426]
[1756403715835,0.002,112450.0,112440.0,1.96100426]
[1756403718346,0.002,112450.0,112440.0,1.48247253]
[1756403718546,0.002,112450.0,112440.0,0.65651253]
[1756403721444,0.002,112450.0,112440.0,1.13460426]
[1756403721648,0.002,112450.0,112440.0,0.1784208]
[1756403721948,0.002,112450.0,112440.0,1.13460426]
[1756403723447,0.002,112450.0,112440.0,0.65651253]
[1756403725359,0.002,112450.0,112440.0,1.13460426]
[1756403730551,0.002,112450.0,112440.0,1.95872426]
[1756403731952,0.002,112450.0,112440.0,1.13460426]
[1756403732153,0.002,112450.0,112440.0,1.95860426]
[1756403733152,0.002,112450.0,112440.0,1.13460426]
[1756403733353,0.29094,112450.0,112440.0,0.1784208]
[1756403733652,0.29094,112450.0,112440.0,0.65651253]
[1756403734847,0.29094,112450.0,112440.0,0.1542108]
[1756403735054,0.85795453,112450.0,112440.0,0.1389308]
[1756403735458,0.85795453,112450.0,112440.0,0.05]
[1756403735854,0.85795453,112450.0,112440.0,0.1389307]
[1756403736658,1.68223453,112450.0,112440.0,0.1389307]
[1756403736961,1.68223453,112450.0,112440.0,0.1542507]
[1756403737261,1.68223453,112450.0,112440.0,0.1389307]
[1756403739767,1.68223453,112450.0,112440.0,0.1542507]
[1756403740063,1.68171453,112450.0,112440.0,0.1791007]
[1756403740265,1.68171453,112450.0,112440.0,0.1542507]
[1756403740965,1.68171453,112450.0,112440.0,0.05]
[1756403741370,1.68171453,112450.0,112440.0,0.02751]
[1756403741668,0.0889307,112440.0,112430.0,0.0889321]
[1756403741860,0.56702243,112440.0,112430.0,0.03]
[1756403742062,0.0889386,112430.0,112420.0,0.1042636]
[1756403742262,0.93258623,112430.0,112420.0,0.1591136]
[1756403744462,0.94128996,112430.0,112420.0,0.1591136]
[1756403744767,0.93258623,112430.0,112420.0,0.1601136]
[1756403746274,1.66067796,112430.0,112420.0,0.1199436]
[1756403746570,1.66067796,112430.0,112420.0,0.1352636]
[1756403748375,1.66067796,112430.0,112420.0,0.1601136]
[1756403748779,1.66067796,112430.0,112420.0,0.1352636]
[1756403749076,1.66979491,112430.0,112420.0,0.1352636]
[1756403750075,0.36806318,112430.0,112420.0,0.1352636]
[1756403750276,1.18182623,112430.0,112420.0,0.1601136]
[1756403750774,1.18182623,112430.0,112420.0,0.1352636]
[1756403751084,1.65991796,112430.0,112420.0,0.1352665]
[1756403751469,1.65991796,112430.0,112420.0,0.1601165]
[1756403751675,1.65991796,112430.0,112420.0,0.1352665]
[1756403752379,1.65991796,112430.0,112420.0,0.1342665]
[1756403753172,0.93182623,112430.0,112420.0,0.1342665]
[1756403753479,1.40991796,112430.0,112420.0,0.1342665]
[1756403753979,1.41091796,112430.0,112420.0,0.1342665]
[1756403756082,0.58803796,112430.0,112420.0,0.1342665]
[1756403756381,1.41295796,112430.0,112420.0,0.1342665]
[1756403757181,1.41275796,112430.0,112420.0,0.1591165]
[1756403757482,1.41275796,112430.0,112420.0,0.1342665]
[1756403760979,1.41239796,112430.0,112420.0,0.1572965]
[1756403761486,0.58803796,112430.0,112420.0,0.1572965]
[1756403761687,1.41203796,112430.0,112420.0,0.1572965]
[1756403762686,1.41203796,112430.0,112420.0,0.1342665]
[1756403767306,0.02100763,112430.0,112420.0,0.1572965]
[1756403767604,0.84424763,112430.0,112420.0,0.1572965]
[1756403768000,0.93318633,112430.0,112420.0,0.1572965]
[1756403768599,0.93318633,112430.0,112420.0,0.1342665]
[1756403769306,0.93318633,112430.0,112420.0,0.1572965]
[1756403770699,0.93286633,112430.0,112420.0,0.1572965]
[1756403771303,0.9592406,112430.0,112420.0,0.1572965]
[1756403772407,0.93286633,112430.0,112420.0,0.1572965]
[1756403772803,0.93286633,112430.0,112420.0,0.1272965]
[1756403773105,1.41095806,112430.0,112420.0,0.1272965]
[1756403773306,1.47150818,112430.0,112420.0,0.66593835]
[1756403773500,1.47150818,112430.0,112420.0,0.1272965]
[1756403773704,1.47110818,112430.0,112420.0,0.66593835]
[1756403773905,1.47090818,112430.0,112420.0,0.66593835]
[1756403774407,1.47090818,112430.0,112420.0,0.1272965]
[1756403774610,1.47090818,112430.0,112420.0,0.66593835]
[1756403775711,1.47090818,112430.0,112420.0,0.1272965]
[1756403776005,1.47090818,112430.0,112420.0,0.66593835]
[1756403776807,0.64858818,112430.0,112420.0,0.66593835]
[1756403777008,1.47054818,112430.0,112420.0,0.66593835]
[1756403780207,0.02100763,112430.0,112420.0,0.94593835]
[1756403780905,0.8212,112440.0,112430.0,0.1273987]
[1756403781207,2.05334045,112450.0,112430.0,0.1273987]
[1756403781208,0.34066045,112450.0,112440.0,0.1273908]
[1756403781409,1.16226045,112450.0,112440.0,0.63582656]
[1756403782311,0.34066045,112450.0,112440.0,0.63582656]
[1756403782506,1.06930045,112450.0,112440.0,0.89453116]
[1756403782707,0.72864,112450.0,112440.0,0.89453116]
[1756403783219,0.003,112450.0,112440.0,0.89453116]
[1756403783910,0.003,112450.0,112440.0,1.37296692]
[1756403784215,0.003,112450.0,112440.0,0.89453116]
[1756403784415,0.004,112450.0,112440.0,0.89453116]
[1756403784718,0.003,112450.0,112440.0,0.89453116]
[1756403786018,0.03942,112450.0,112440.0,0.1573908]
[1756403786413,0.51785576,112450.0,112440.0,0.1573908]
[1756403787016,0.03942,112450.0,112440.0,0.1573908]
[1756403787217,0.86598,112450.0,112440.0,0.1573908]
[1756403790015,1.68333856,112450.0,112440.0,0.1343608]
[1756403791321,0.28942,112450.0,112440.0,0.1583908]
[1756403791623,1.06278,112450.0,112440.0,0.63682656]
[1756403792114,1.06278,112450.0,112440.0,0.1583908]
[1756403793019,1.11962,112450.0,112440.0,0.63682656]
[1756403793722,0.28942,112450.0,112440.0,0.63682656]
[1756403793927,1.12226,112450.0,112440.0,0.63682656]
[1756403794132,0.30901098,112450.0,112440.0,0.63682656]
[1756403794328,1.14185098,112450.0,112440.0,0.63682656]
[1756403794523,0.30901098,112450.0,112440.0,0.63682656]
[1756403794731,0.003,112450.0,112440.0,0.1583908]
[1756403795030,0.01964,112450.0,112440.0,0.63682656]
[1756403795425,0.04064,112450.0,112440.0,0.63682656]
[1756403796330,0.003,112450.0,112440.0,0.63682656]
[1756403797833,0.04064,112450.0,112440.0,0.63682656]
[1756403798033,0.01964,112450.0,112440.0,0.63682656]
[1756403799035,0.003,112450.0,112440.0,0.63682656]
[1756403799229,0.003,112450.0,112440.0,1.11526232]
[1756403799433,0.003,112450.0,112440.0,1.36526232]
[1756403800234,0.95478243,112470.0,112460.0,0.1293249]
[1756403800434,0.95478243,112470.0,112460.0,0.63776066]
[1756403801734,0.95878243,112470.0,112460.0,0.1293249]
[1756403801930,1.77912519,112470.0,112450.0,0.47843576]
[1756403802133,1.41921819,112470.0,112460.0,0.0889149]
[1756403802436,0.09358243,112470.0,112460.0,0.1052949]
[1756403802636,0.96626243,112470.0,112460.0,0.60776066]
[1756403802936,0.96626243,112470.0,112460.0,0.1189149]
[1756403803132,0.96626243,112470.0,112460.0,0.1352949]
[1756403803537,1.44369819,112470.0,112460.0,0.1352949]
[1756403804040,0.96526243,112470.0,112460.0,0.1352949]
[1756403804333,0.96626243,112470.0,112460.0,0.1352949]
[1756403804535,0.11758243,112470.0,112460.0,0.1593249]
[1756403804742,0.96646243,112470.0,112460.0,0.1593249]
[1756403805936,0.96646243,112470.0,112460.0,0.1352949]
[1756403806142,0.96646243,112470.0,112460.0,0.1052949]
[1756403806545,0.96634243,112470.0,112460.0,0.1052949]
[1756403806737,0.96634243,112470.0,112460.0,0.1293249]
[1756403808137,0.96634243,112470.0,112460.0,0.1052949]
[1756403808540,0.96634243,112470.0,112460.0,0.1293249]
[1756403808743,0.96634243,112470.0,112460.0,0.1052949]
[1756403809633,1.44477819,112470.0,112460.0,0.1052949]
[1756403809838,0.59601819,112470.0,112460.0,0.1052949]
[1756403810234,1.44317819,112470.0,112460.0,0.1293249]
[1756403810842,0.96474243,112470.0,112460.0,0.1293249]
[1756403811044,0.96442243,112470.0,112460.0,0.1293249]
[1756403811244,0.11758243,112470.0,112460.0,0.1293249]
[1756403811441,0.96430243,112470.0,112460.0,0.1293249]
[1756403811647,0.11758243,112470.0,112460.0,0.63776066]
[1756403811843,0.96434243,112470.0,112460.0,0.63776066]
[1756403812046,0.96454243,112470.0,112460.0,0.63776066]
[1756403812245,0.02364,112470.0,112460.0,0.88776066]
[1756403812739,0.04764,112470.0,112460.0,0.4093249]
[1756403812946,0.04764,112470.0,112460.0,0.88776066]
[1756403813145,0.04664,112470.0,112460.0,0.63776066]
[1756403813950,0.04464,112470.0,112460.0,0.63776066]
[1756403814349,0.04464,112470.0,112460.0,0.1593249]
[1756403814552,0.04464,112470.0,112460.0,0.63776066]
[1756403815247,0.02064,112470.0,112460.0,0.63776066]
[1756403815550,0.004,112470.0,112460.0,0.63776066]
[1756403815746,0.004,112470.0,112460.0,0.64678908]
[1756403817454,0.02064,112470.0,112460.0,0.64678908]
[1756403818350,0.004,112470.0,112460.0,0.64678908]
[1756403818551,0.02064,112470.0,112460.0,0.64678908]
[1756403818750,0.004,112470.0,112460.0,0.64678908]
[1756403819547,0.004,112470.0,112460.0,0.89678908]
[1756403819753,0.01969427,112480.0,112470.0,0.1293171]
[1756403820050,0.01969427,112480.0,112470.0,0.63775286]
[1756403820247,0.03633427,112480.0,112470.0,0.63775286]
[1756403820648,0.06004427,112480.0,112470.0,0.1593171]
[1756403820854,0.06004427,112480.0,112470.0,0.63775286]
[1756403821053,0.06004427,112480.0,112470.0,0.1593171]
[1756403821249,0.06104427,112480.0,112470.0,0.63775286]
[1756403821455,0.06104427,112480.0,112470.0,0.1593171]
[1756403822857,0.06204427,112480.0,112470.0,0.1593171]
[1756403824961,0.06204427,112480.0,112470.0,0.63775286]
[1756403826158,0.06204427,112480.0,112470.0,0.1593171]
[1756403827858,0.90504427,112480.0,112470.0,0.1593171]
[1756403828658,1.47237923,112480.0,112470.0,0.1593171]
[1756403829463,0.54048003,112480.0,112470.0,0.1593171]
[1756403829661,1.38284003,112480.0,112470.0,0.1593171]
[1756403829857,0.90440427,112480.0,112470.0,0.1593171]
[1756403830463,0.99330347,112480.0,112470.0,0.1593171]
[1756403831967,0.06204427,112480.0,112470.0,0.1593171]
[1756403832160,0.49104427,112480.0,112470.0,0.63775286]
[1756403832559,0.06204427,112480.0,112470.0,0.63775286]
[1756403832766,0.06204427,112480.0,112470.0,0.88775286]
[1756403832767,0.002,112480.0,112470.0,0.88775286]
[1756403833468,0.01711,112480.0,112470.0,0.88775286]
[1756403833864,0.002,112480.0,112470.0,0.88775286]
[1756403834064,0.04082,112480.0,112470.0,0.88775286]
[1756403834466,0.04082,112480.0,112470.0,0.63775286]
[1756403837068,0.002,112480.0,112470.0,0.63775286]
[1756403837774,0.01711,112480.0,112470.0,0.63775286]
[1756403838176,0.002,112480.0,112470.0,0.63775286]
[1756403838869,0.002,112480.0,112470.0,1.36618862]
[1756403839063,0.01993127,112490.0,112480.0,0.0888992]
[1756403839269,0.01993127,112490.0,112480.0,1.11448072]
[1756403839565,0.01993127,112490.0,112480.0,0.63604496]
[1756403840175,0.97827585,112510.0,112500.0,0.1275934]
[1756403840374,0.97827585,112510.0,112500.0,0.1575934]
[1756403840375,1.0582419,112510.0,112500.0,0.1575934]
[1756403840576,0.1277655,112510.0,112500.0,0.1575934]
[1756403840764,0.9692455,112510.0,112500.0,0.1575934]
[1756403841370,0.9112455,112510.0,112500.0,0.1575934]
[1756403841575,0.93170605,112510.0,112500.0,0.63602916]
[1756403841776,0.90170605,112510.0,112500.0,0.63602916]
[1756403841976,0.9712255,112510.0,112500.0,0.63602916]
[1756403842570,0.9732255,112510.0,112500.0,0.63602916]
[1756403842978,0.9712255,112510.0,112500.0,0.63602916]
[1756403843178,0.9707855,112510.0,112500.0,0.63602916]
[1756403843476,0.9697855,112510.0,112500.0,0.63602916]
[1756403845979,0.1293055,112510.0,112500.0,0.63602916]
[1756403846175,0.9689455,112510.0,112500.0,0.63602916]
[1756403846374,0.89942605,112510.0,112500.0,0.63602916]
[1756403846880,0.89942605,112510.0,112500.0,0.1575934]
[1756403847076,0.89942605,112510.0,112500.0,0.63602916]
[1756403847383,0.89942605,112510.0,112500.0,0.1575934]
[1756403847587,0.89942605,112510.0,112500.0,0.63602916]
[1756403848584,0.02096605,112510.0,112500.0,0.63602916]
[1756403849183,0.03607605,112510.0,112500.0,0.63602916]
[1756403849781,0.03507605,112510.0,112500.0,0.63602916]
[1756403849982,0.03507605,112510.0,112500.0,0.63802916]
[1756403850985,0.01996605,112510.0,112500.0,0.63802916]
[1756403851581,0.85425,112520.0,112510.0,0.1280255]
[1756403851781,0.87914,112520.0,112510.0,0.63646126]